fUST/lending_fUST_20251117
["ID","MTS","AMOUNT","RATE_DAILY","PERIOD"]
[394168990,1763341832873,-500.0,0.0004172,31]
[394168992,1763341832883,-500.0,0.0004172,7]
[394168994,1763341832894,-500.0,0.0004172,31]
[394168996,1763341832904,-500.0,0.0004172,31]
[394168999,1763341832914,-500.0,0.0004172,31]
[394169001,1763341832924,-500.0,0.0004172,7]
[394169003,1763341832936,-500.0,0.0004172,31]
[394169005,1763341832947,-500.0,0.0004172,31]
[394169007,1763341832957,-500.0,0.0004172,7]
[394169009,1763341832967,-500.0,0.0004172,31]
[394169011,1763341832980,-500.0,0.0004172,31]
[394169014,1763341832990,-500.0,0.0004172,31]
[394169016,1763341833001,-500.0,0.0004172,31]
[394169018,1763341833011,-500.0,0.0004172,31]
[394169020,1763341833021,-500.0,0.0004172,7]
[394169022,1763341833032,-500.0,0.0004172,31]
[394169024,1763341833042,-500.0,0.0004172,7]
[394169026,1763341833053,-500.0,0.0004172,31]
[394169028,1763341833063,-500.0,0.0004172,31]
[394169030,1763341833074,-500.0,0.0004172,7]
[394169032,1763341833084,-226.91272842,0.0004172,31]
[394169034,1763341833094,-500.0,0.0004172,31]
[394169036,1763341833105,-500.0,0.0004172,7]
[394169038,1763341833116,-500.0,0.0004172,31]
[394169041,1763341833127,-500.0,0.0004172,31]
[394169043,1763341833137,-500.0,0.0004172,31]
[394169045,1763341833147,-500.0,0.0004172,7]
[394169047,1763341833158,-500.0,0.0004172,31]
[394169049,1763341833168,-500.0,0.0004172,31]
[394169051,1763341833179,-401.52051787,0.0004172,31]
[394169053,1763341833190,-500.0,0.0004172,31]
[394169055,1763341833201,-500.0,0.0004172,31]
[394169057,1763341833212,-500.0,0.0004172,31]
[394169059,1763341833222,-500.0,0.0004172,31]
[394169062,1763341833233,-550.0,0.0004172,31]
[394169064,1763341833245,-500.0,0.0004172,7]
[394169073,1763341833379,-500.0,0.0004172,31]
[394169074,1763341833390,-500.0,0.0004172,31]
[394169075,1763341833399,-500.0,0.0004172,31]
[394169076,1763341833409,-500.0,0.0004172,31]
[394169077,1763341833418,-500.0,0.0004172,31]
[394169078,1763341833428,-500.0,0.0004172,7]
[394169079,1763341833437,-536.07013617,0.0004172,31]
[394169080,1763341833447,-500.0,0.0004172,7]
[394169081,1763341833466,-500.0,0.0004172,31]
[394169082,1763341833479,-500.0,0.0004172,31]
[394169083,1763341833489,-500.0,0.0004172,31]
[394169084,1763341833499,-500.0,0.0004172,31]
[394169085,1763341833508,-500.0,0.0004172,31]
[394169086,1763341833518,-500.0,0.0004172,7]
[394169087,1763341833528,-500.0,0.0004172,31]
[394169088,1763341833538,-500.0,0.0004172,31]
[394169089,1763341833548,-336.64902333,0.0004172,7]
[394169090,1763341833558,-500.0,0.0004172,31]
[394169091,1763341833568,-500.0,0.0004172,31]
[394169092,1763341833578,-500.0,0.0004172,31]
[394169093,1763341833588,-500.0,0.0004172,31]
[394169094,1763341833598,-500.0,0.0004172,31]
[394169095,1763341833609,-500.0,0.0004172,31]
[394169096,1763341833619,-500.0,0.0004172,31]
[394169097,1763341833628,-360.70136174,0.0004172,31]
[394169098,1763341833638,-500.0,0.0004172,31]
[394169099,1763341833648,-500.0,0.0004172,31]
[394169100,1763341833658,-500.0,0.0004172,31]
[394169101,1763341833667,-500.0,0.0004172,31]
[394169102,1763341833677,-500.0,0.0004172,31]
[394169103,1763341833687,-500.0,0.0004172,31]
[394169104,1763341833697,-500.0,0.0004172,31]
[394169105,1763341833707,-285.07282242,0.0004172,31]
[394169106,1763341833716,-500.0,0.0004172,31]
[394169107,1763341833727,-500.0,0.0004172,31]
[394169108,1763341833736,-500.0,0.0004172,31]
[394169109,1763341833745,-399.99999999,0.0004172,31]
[394169110,1763341833755,-500.0,0.0004172,31]
[394169111,1763341833765,-500.0,0.0004172,31]
[394169112,1763341833774,-500.0,0.0004172,31]
[394169113,1763341833785,-500.0,0.0004172,31]
[394169114,1763341833800,-500.0,0.0004172,31]
[394169115,1763341833810,-500.0,0.0004172,31]
[394169116,1763341833819,-500.0,0.0004172,31]
[394169117,1763341833828,-500.0,0.0004172,31]
[394169118,1763341833838,-500.0,0.0004172,31]
[394169119,1763341833848,-500.0,0.0004172,31]
[394169120,1763341833857,-500.0,0.0004172,31]
[394169121,1763341833867,-500.0,0.0004172,31]
[394169122,1763341833877,-500.0,0.0004172,31]
[394169123,1763341833886,-500.0,0.0004172,31]
[394169124,1763341833896,-403.31159496,0.0004172,31]
[394169125,1763341833906,-708.51960865,0.0004172,7]
[394169126,1763341833916,-500.0,0.0004172,31]
[394169127,1763341833926,-708.51960865,0.0004172,7]
[394169128,1763341833935,-500.0,0.0004172,31]
[394169129,1763341833945,-500.0,0.0004172,31]
[394169130,1763341833955,-708.51960865,0.0004172,7]
[394169131,1763341833964,-500.0,0.0004172,31]
[394169132,1763341833976,-708.51960865,0.0004172,7]
[394169133,1763341833986,-500.0,0.0004172,31]
[394169134,1763341833996,-500.0,0.0004172,31]
[394169135,1763341834006,-708.51960865,0.0004172,7]
[394169136,1763341834016,-500.0,0.0004172,31]
[394169137,1763341834026,-421.05217074,0.0004172,31]
[394169138,1763341834036,-708.51960865,0.0004172,7]
[394169139,1763341834046,-500.0,0.0004172,31]
[394169140,1763341834055,-708.51960865,0.0004172,7]
[394169141,1763341834065,-500.0,0.0004172,31]
[394169142,1763341834075,-500.0,0.0004172,31]
[394169143,1763341834084,-708.51960865,0.0004172,7]
[394169144,1763341834094,-500.0,0.0004172,31]
[394169145,1763341834104,-708.51960865,0.0004172,7]
[394169146,1763341834113,-500.0,0.0004172,31]
[394169147,1763341834123,-500.0,0.0004172,31]
[394169148,1763341834132,-708.51960865,0.0004172,7]
[394169149,1763341834141,-500.0,0.0004172,31]
[394169150,1763341834151,-708.51960865,0.0004172,7]
[394169151,1763341834160,-708.51960865,0.0004172,7]
[394169152,1763341834170,-708.51960865,0.0004172,7]
[394169153,1763341834180,-708.51960865,0.0004172,7]
[394169154,1763341834190,-500.0,0.0004172,31]
[394169155,1763341834199,-708.51960865,0.0004172,7]
[394169156,1763341834209,-708.51960865,0.0004172,7]
[394169157,1763341834219,-500.0,0.0004172,31]
[394169158,1763341834232,-708.51960865,0.0004172,7]
[394169159,1763341834242,-500.0,0.0004172,31]
[394169160,1763341834252,-708.51960865,0.0004172,7]
[394169161,1763341834262,-708.51960865,0.0004172,7]
[394169162,1763341834271,-708.51960865,0.0004172,7]
[394169163,1763341834282,-708.51960865,0.0004172,7]
[394169164,1763341834291,-708.51960865,0.0004172,7]
[394169165,1763341834301,-708.51960865,0.0004172,7]
[394169166,1763341834310,-708.51960865,0.0004172,7]
[394169167,1763341834320,-708.51960865,0.0004172,7]
[394169168,1763341834329,-708.51960865,0.0004172,7]
[394169169,1763341834338,-708.51960865,0.0004172,7]
[394169170,1763341834347,-708.51960865,0.0004172,7]
[394169171,1763341834356,-708.51960865,0.0004172,7]
[394169172,1763341834365,-708.51960865,0.0004172,7]
[394169173,1763341834374,-708.51960865,0.0004172,7]
[394169174,1763341834383,-708.51960865,0.0004172,7]
[394169175,1763341834394,-708.51960865,0.0004172,7]
[394169176,1763341834403,-708.51960865,0.0004172,7]
[394169177,1763341834413,-708.51960865,0.0004172,7]
[394169178,1763341834422,-708.51960865,0.0004172,7]
[394169179,1763341834432,-708.51960865,0.0004172,7]
[394169180,1763341834441,-708.51960865,0.0004172,7]
[394169181,1763341834451,-708.51960865,0.0004172,7]
[394169182,1763341834460,-708.51960865,0.0004172,7]
[394169183,1763341834470,-708.51960865,0.0004172,7]
[394169184,1763341834480,-708.51960865,0.0004172,7]
[394169185,1763341834490,-708.51960865,0.0004172,7]
[394169186,1763341834499,-708.51960865,0.0004172,7]
[394169187,1763341834508,-708.51960865,0.0004172,7]
[394169188,1763341834518,-708.51960865,0.0004172,7]
[394169189,1763341834527,-708.51960865,0.0004172,7]
[394169190,1763341834537,-708.51960865,0.0004172,7]
[394169191,1763341834546,-708.51960865,0.0004172,7]
[394169192,1763341834556,-708.51960865,0.0004172,7]
[394169193,1763341834565,-708.51960865,0.0004172,7]
[394169194,1763341834575,-708.51960865,0.0004172,7]
[394169195,1763341834584,-128.42964477,0.0004172,7]
[394169225,1763341838547,-535.67,0.00041711,30]
[394169228,1763341838558,-238.46,0.00041711,10]
[394169230,1763341838568,-580.08996388,0.0004172,7]
[394169232,1763341838578,-708.51960865,0.0004172,7]
[394169234,1763341838588,-708.51960865,0.0004172,7]
[394169236,1763341838598,-708.51960865,0.0004172,7]
[394169238,1763341838607,-708.51960865,0.0004172,7]
[394169240,1763341838617,-677.52187576,0.0004172,7]
[394169241,1763341838625,-677.52187576,0.0004172,7]
[394169243,1763341838635,-677.52187576,0.0004172,7]
[394169245,1763341838647,-677.52187576,0.0004172,7]
[394169247,1763341838658,-677.52187576,0.0004172,7]
[394169250,1763341838673,-677.52187576,0.0004172,7]
[394169252,1763341838683,-677.52187576,0.0004172,7]
[394169254,1763341838693,-677.52187576,0.0004172,7]
[394169256,1763341838703,-677.52187576,0.0004172,7]
[394169259,1763341838713,-677.52187576,0.0004172,7]
[394169260,1763341838722,-677.52187576,0.0004172,7]
[394169262,1763341838734,-677.52187576,0.0004172,7]
[394169264,1763341838744,-677.52187576,0.0004172,7]
[394169267,1763341838753,-677.52187576,0.0004172,7]
[394169269,1763341838763,-677.52187576,0.0004172,7]
[394169270,1763341838773,-677.52187576,0.0004172,7]
[394169272,1763341838783,-92263.2952439,0.00041721,3]
[394169275,1763341838797,-500.0,0.0004173,7]
[394169276,1763341838806,-550.64415392,0.0004173,31]
[394169279,1763341838815,-500.0,0.0004173,31]
[394169280,1763341838825,-200.38131486,0.0004173,31]
[394169282,1763341838836,-192.52352946,0.0004173,7]
[394169284,1763341838846,-550.0,0.0004173,31]
[394169286,1763341838855,-500.0,0.00041731,31]
[394169288,1763341838865,-50000.0,0.00041731,2]
[394169290,1763341838876,-164.22872862,0.000418,10]
[394169292,1763341838885,-414.77,0.000418,30]
[394169294,1763341838895,-334.01,0.00041901,2]
[394169296,1763341838904,-502.0231646,0.00042,20]
[394169298,1763341838914,-169.27,0.00042616,36]
[394169300,1763341838923,-626.22,0.00042824,7]
[394169302,1763341838933,-150.0,0.00042848,120]
[394169304,1763341838942,-750.0,0.00042848,5]
[394169306,1763341838952,-184526.590488,0.00042916,3]
[394169308,1763341838961,-184526.590488,0.00042917,3]
[394169310,1763341838970,-500.0,0.00042936,2]
[394169312,1763341838981,-500.0,0.00043027,2]
[394169314,1763341838991,-916.2,0.000431,14]
[394169316,1763341839001,-1949.52,0.000432,14]
[394169318,1763341839010,-626.73,0.00044123,2]
[394169320,1763341839020,-234.3069489,0.00044848,120]
[394169322,1763341839029,-417.51,0.00044894,2]
[394169324,1763341839038,-268.479591,0.00046143,2]
[394169326,1763341839049,-181.43944451,0.00046912,2]
[394169328,1763341839058,-501.01,0.00047887,2]
[394169330,1763341839067,-178.0,0.00049,120]
[394169332,1763341839076,-500.0,0.00049315,2]
[394169334,1763341839085,-1000.0,0.00049315,120]
[394169336,1763341839095,-500.0,0.00049315,120]
[394169337,1763341839104,-500.0,0.00049315,2]
[394169339,1763341839114,-1442.62,0.00049315,3]
[394169341,1763341839123,-500.0,0.00049315,120]
[394169343,1763341839133,-500.0,0.00049315,120]
[394169345,1763341839143,-500.0,0.00049315,120]
[394169347,1763341839153,-500.0,0.00049315,120]
[394169349,1763341839163,-500.0,0.00049315,120]
[394169350,1763341839173,-500.0,0.00049315,120]
[394169352,1763341839183,-500.0,0.00049315,120]
[394169354,1763341839192,-500.0,0.00049315,120]
[394169356,1763341839201,-500.0,0.00049315,120]
[394169357,1763341839211,-500.0,0.00049315,120]
[394169359,1763341839220,-500.0,0.00049315,120]
[394169360,1763341839231,-500.0,0.00049315,120]
[394169361,1763341839240,-500.0,0.00049315,120]
[394169362,1763341839250,-500.0,0.00049315,120]
[394169363,1763341839259,-500.0,0.00049315,120]
[394169364,1763341839269,-500.0,0.00049315,120]
[394169365,1763341839278,-500.0,0.00049315,120]
[394169366,1763341839287,-500.0,0.00049315,120]
[394169367,1763341839297,-500.0,0.00049315,120]
[394169368,1763341839306,-500.47808778,0.00049315,120]
[394169369,1763341839315,-501.14323672,0.00049315,120]
[394169370,1763341839325,-820.63,0.00049315,120]
[394169371,1763341839335,-500.0,0.00049315,7]
[394169372,1763341839344,-900.72,0.00049315,2]
[394169373,1763341839353,-500.0,0.00049315,7]
[394169374,1763341839363,-500.0,0.00049589,2]
[394169375,1763341839372,-1000.0,0.00049589,120]
[394169376,1763341839471,-500.0,0.00049589,120]
[394169377,1763341839482,-500.0,0.00049589,2]
[394169378,1763341839491,-1442.62,0.00049589,3]
[394169379,1763341839501,-820.63,0.00049589,120]
[394169380,1763341839511,-500.0,0.00049589,7]
[394169381,1763341839520,-900.72,0.00049589,2]
[394169382,1763341839528,-500.0,0.00049589,7]
[394169383,1763341839537,-283.95666664,0.00049863,2]
[394169384,1763341839547,-1000.0,0.00049863,120]
[394169385,1763341839556,-500.0,0.00049863,120]
[394169386,1763341839565,-500.0,0.00049863,2]
[394169387,1763341839575,-1442.62,0.00049863,3]
[394169388,1763341839586,-820.63,0.00049863,120]
[394169389,1763341839595,-500.0,0.00049863,7]
[394169390,1763341839605,-900.72,0.00049863,2]
[394169391,1763341839615,-500.0,0.00049863,7]
[394169392,1763341839624,-1046.54839005,0.00050136,120]
[394169393,1763341839633,-422.40674712,0.00050136,120]
[394169394,1763341839643,-500.0,0.00050136,2]
[394169395,1763341839653,-1442.62,0.00050136,3]
[394169396,1763341839662,-820.63,0.00050136,120]
[394169397,1763341839671,-500.0,0.00050136,7]
[394169398,1763341839686,-900.72,0.00050136,2]
[394169399,1763341839696,-500.0,0.00050136,7]
[394169400,1763341839706,-200.0,0.00050187,120]
[394169401,1763341839716,-298.51530536,0.00050282,7]
[394169402,1763341839725,-500.0,0.0005041,2]
[394169403,1763341839737,-1442.62,0.0005041,3]
[394169404,1763341839746,-820.63,0.0005041,120]
[394169405,1763341839756,-500.0,0.0005041,7]
[394169406,1763341839765,-900.72,0.0005041,2]
[394169407,1763341839774,-500.0,0.0005041,7]
[394169408,1763341839784,-500.0,0.00050684,2]
[394169409,1763341839795,-1442.62,0.00050684,3]
[394169410,1763341839805,-820.63,0.00050684,120]
[394169411,1763341839815,-500.0,0.00050684,7]
[394169412,1763341839826,-900.72,0.00050684,2]
[394169413,1763341839837,-500.0,0.00050684,7]
[394169414,1763341839848,-584.51,0.0005088,2]
[394169415,1763341839859,-500.0,0.00050889,10]
[394169416,1763341839870,-500.0,0.00050958,2]
[394169417,1763341839881,-1442.62,0.00050958,3]
[394169418,1763341839892,-820.63,0.00050958,120]
[394169419,1763341839902,-500.0,0.00050958,7]
[394169420,1763341839912,-900.72,0.00050958,2]
[394169421,1763341839921,-500.0,0.00050958,7]
[394169422,1763341839932,-500.0,0.00051232,2]
[394169423,1763341839942,-1442.62,0.00051232,3]
[394169424,1763341839951,-820.63,0.00051232,120]
[394169425,1763341839961,-500.0,0.00051232,7]
[394169426,1763341839969,-900.72,0.00051232,2]
[394169427,1763341839982,-500.0,0.00051232,7]
[394169428,1763341839992,-500.0,0.00051273,10]
[394169429,1763341840005,-916.2,0.000513,14]
[394169430,1763341840015,-1000.0,0.00051437,10]
[394169431,1763341840025,-500.0,0.00051506,2]
[394169432,1763341840034,-1442.62,0.00051506,3]
[394169433,1763341840043,-820.63,0.00051506,120]
[394169434,1763341840053,-500.0,0.00051506,7]
[394169435,1763341840062,-900.72,0.00051506,2]
[394169436,1763341840071,-500.0,0.00051506,7]
[394169437,1763341840081,-725.75777803,0.00051652,2]
[394169438,1763341840091,-500.0,0.0005178,2]
[394169439,1763341840100,-1442.62,0.0005178,3]
[394169440,1763341840110,-820.63,0.0005178,120]
[394169441,1763341840119,-500.0,0.0005178,7]
[394169442,1763341840128,-900.72,0.0005178,2]
[394169443,1763341840138,-233.52221231,0.0005178,7]
[394169444,1763341840146,-1000.0,0.00051821,10]
[394169445,1763341840155,-1000.0,0.00051985,10]
[394169446,1763341840164,-500.0,0.00052054,2]
[394169447,1763341840174,-1442.62,0.00052054,3]
[394169448,1763341840183,-820.63,0.00052054,120]
[394169449,1763341840192,-500.0,0.00052054,7]
[394169450,1763341840202,-900.72,0.00052054,2]
[394169451,1763341840211,-500.0,0.00052328,2]
[394169452,1763341840220,-1442.62,0.00052328,3]
[394169453,1763341840232,-820.63,0.00052328,120]
[394169454,1763341840241,-500.0,0.00052328,7]
[394169455,1763341840250,-900.72,0.00052328,2]
[394169456,1763341840260,-926.53760545,0.00052368,10]
[394169457,1763341840269,-500.0,0.00052602,2]
[394169458,1763341840279,-1442.62,0.00052602,3]
[394169459,1763341840289,-820.63,0.00052602,120]
[394169460,1763341840300,-500.0,0.00052602,7]
[394169461,1763341840309,-900.72,0.00052602,2]
[394169462,1763341840319,-268.479591,0.00052632,2]
[394169463,1763341840328,-1949.52,0.000527,14]
[394169464,1763341840338,-440.88010213,0.00052876,2]
[394169465,1763341840347,-1442.62,0.00052876,3]
[394169466,1763341840358,-820.63,0.00052876,120]
[394169467,1763341840367,-500.0,0.00052876,7]
[394169468,1763341840377,-900.72,0.00052876,2]
[394169470,1763341840386,-3797.6824404,0.00053,30]
[394169471,1763341840396,-1442.62,0.0005315,3]
[394169472,1763341840405,-820.63,0.0005315,120]
[394169473,1763341840414,-500.0,0.0005315,7]
[394169474,1763341840423,-900.72,0.0005315,2]
[394169475,1763341840432,-1442.62,0.00053424,3]
[394169476,1763341840441,-820.63,0.00053424,120]
[394169477,1763341840451,-500.0,0.00053424,7]
[394169478,1763341840460,-900.72,0.00053424,2]
[394169479,1763341840470,-1442.62,0.00053698,3]
[394169480,1763341840481,-820.63,0.00053698,120]
[394169481,1763341840491,-593.19069692,0.00053698,7]
[394169483,1763341840500,-900.72,0.00053698,2]
[394169484,1763341840509,-384.91266502,0.00053834,2]
[394169486,1763341840519,-668.01,0.00053873,2]
[394169488,1763341840529,-1442.62,0.00053972,3]
[394169489,1763341840539,-820.63,0.00053972,120]
[394169490,1763341840549,-900.72,0.00053972,2]
[394169491,1763341840558,-1442.62,0.00054246,3]
[394169492,1763341840567,-820.63,0.00054246,120]
[394169493,1763341840576,-900.72,0.00054246,2]
[394169494,1763341840584,-84322.924045,0.0005442,120]
[394169495,1763341840594,-1442.62,0.0005452,3]
[394169496,1763341840603,-820.63,0.0005452,120]
[394169497,1763341840612,-900.72,0.0005452,2]
[394169498,1763341840621,-169.23,0.000547,57]
[394169500,1763341840630,-1442.62,0.00054794,3]
[394169501,1763341840639,-820.63,0.00054794,120]
[394169502,1763341840648,-900.72,0.00054794,2]
[394169503,1763341840658,-1442.62,0.00055068,3]
[394169504,1763341840667,-820.63,0.00055068,120]
[394169505,1763341840676,-900.72,0.00055068,2]
[394169506,1763341840686,-916.2,0.000551,14]
[394169507,1763341840695,-1442.62,0.00055342,3]
[394169508,1763341840704,-820.63,0.00055342,120]
[394169509,1763341840714,-900.72,0.00055342,2]
[394169510,1763341840723,-1442.68113921,0.00055616,3]
[394169511,1763341840735,-820.66072403,0.00055616,120]
[394169512,1763341840745,-900.89748711,0.00055616,2]
[394169513,1763341840755,-151.0,0.000557,24]
[394169514,1763341840764,-185.32004369,0.00056355,2]
[394169515,1763341840774,-1632.95500057,0.00056392,2]
[394169516,1763341840786,-268228.1698,0.0005644,120]
[394169517,1763341840799,-751.52,0.00056866,2]
[394169518,1763341840810,-1277.12332,0.00057008,30]
[394169519,1763341840820,-200.0,0.000571,120]
[394169520,1763341840831,-512.29960802,0.00057224,5]
[394169521,1763341840840,-205.466,0.00057784,120]
[394169522,1763341840849,-250.0,0.00057784,120]
[394169523,1763341840859,-1949.52,0.000578,14]
[394169524,1763341840869,-216.57307,0.000587,120]
[394169525,1763341840879,-2149.0,0.00058994,120]
[394169526,1763341840887,-407.26197307,0.00058994,120]
[394169527,1763341840900,-580.73802693,0.00058994,120]
[394169528,1763341840910,-629.0,0.00058994,120]
[394169530,1763341840920,-464.682,0.00058994,120]
[394169532,1763341840929,-268.479591,0.0005912,2]
[394169533,1763341840938,-150.0,0.00059173,7]
[394169535,1763341840947,-27440.14252272,0.000592,120]
[394169538,1763341840960,-1250.018742,0.000592,120]
[394169546,1763341844263,-446.39,0.00055332,30]
[394169547,1763341844273,-29035.36644224,0.000592,120]
[394169548,1763341844341,150.0,0.00032896,2]
[394169549,1763341844791,152.56,0.00035886,2]
[394169582,1763341847063,-228.84,0.00038877,2]
[394169584,1763341847072,-305.12,0.00041867,2]
[394169586,1763341847081,-381.39,0.00044858,2]
[394169588,1763341847091,-457.67,0.00047849,2]
[394169590,1763341847100,-533.95,0.00050839,2]
[394169592,1763341847109,-5563.5700048,0.000592,120]
[394169612,1763341848924,202.09591823,0.00028986,2]
[394169613,1763341849189,202.09591823,0.00033737,2]
[394169614,1763341903127,680.7505844,0.00038,120]
[394169620,1763341914684,150.0,0.0003539,2]
[394169624,1763341940566,352.0,0.00038,2]
[394169625,1763341948714,227.97,0.00019,10]
[394169626,1763341980615,150.0,0.00033002,2]
[394169627,1763341981021,150.0,0.00036002,2]
[394169628,1763342044916,150.0,0.00032869,2]
[394169629,1763342045340,150.0,0.00035857,2]
[394169630,1763342094377,202.23060394,0.00028986,2]
[394169631,1763342114367,150.0,0.0003273,2]
[394169632,1763342114776,150.0,0.00035706,2]
[394169633,1763342179543,203.5861341,0.00037793,2]
[394169634,1763342181823,150.0,0.00032707,2]
[394169635,1763342182227,150.0,0.00035681,2]
[394169636,1763342204333,314.0,0.00032877,120]
[394169637,1763342248070,150.0,0.00032642,2]
[394169638,1763342248467,150.0,0.00035609,2]
[394169639,1763342403435,1000.0,0.000329,2]
[394169640,1763342403831,1000.0,0.000329,2]
[394169641,1763342404169,1000.0,0.000329,2]
[394169642,1763342404619,1000.0,0.000329,2]
[394169643,1763342404897,1000.0,0.000329,2]
[394169646,1763342423905,613.13,0.00038,2]
[394169650,1763342504820,150.0,0.00032714,2]
[394169651,1763342505259,150.0,0.00035688,2]
[394169652,1763342529008,194.0,0.00035,120]
[394169653,1763342574713,150.0,0.00032691,2]
[394169654,1763342575124,150.0,0.00035663,2]
[394169655,1763342643937,150.0,0.00032901,2]
[394169656,1763342644360,150.0,0.00035892,2]
[394169657,1763342648635,186.0,0.00035,120]
[394169658,1763342662194,61.87547772,0.00037893,2]
[394169661,1763342713197,150.0,0.00032802,2]
[394169662,1763342713607,150.0,0.00035784,2]
[394169664,1763342786461,150.0,0.00032943,2]
[394169665,1763342786824,150.0,0.00035937,2]
[394169666,1763342792131,-216.68123857,0.00038044,2]
[394169667,1763342808665,4169.5172315,0.00036362,2]
[394169669,1763342836637,150.0,0.0002589,2]
[394169670,1763342837019,177.0,0.0002789,2]
[394169671,1763342837413,204.0,0.0002989,2]
[394169672,1763342837915,231.0,0.0003189,2]
[394169673,1763342838321,258.0,0.0003389,120]
[394169674,1763342838901,285.0,0.0003589,120]
[394169675,1763342857582,150.0,0.00032894,2]
[394169676,1763342857964,150.0,0.00035884,2]
[394169677,1763342870424,840.5944151,0.000359,15]
[394169678,1763342912713,1726.24628978,0.00024,2]
[394169679,1763342914430,16058.64206362,0.00026,30]
[394169680,1763342914455,304.96032038,0.00026,30]
[394169681,1763342919473,5354.67208013,0.00023,2]
[394169682,1763342919680,463.03111694,0.00024,2]
[394169683,1763342921595,18061.32657817,0.00024142,2]
[394169684,1763342921990,150.99999991,0.0002905,2]
[394169685,1763342922984,665.00990447,0.0003152,2]
[394169686,1763342923013,5781.48873292,0.0003152,2]
[394169687,1763342928293,150.0,0.00032765,2]
[394169689,1763342998947,150.0,0.00032667,2]
[394169690,1763343005465,166.94591465,0.00038333,20]
[394169694,1763343016975,604.1,0.0003287,120]
[394169736,1763343031911,-150.0,0.00035637,2]
[394169737,1763343031921,-1600.0,0.00037009,3]
[394169738,1763343031931,-3479.29689677,0.0003701,3]
[394169739,1763343031940,-312.0,0.0003789,120]
[394169740,1763343031950,-400.0,0.00038043,3]
[394169741,1763343031960,-400.0,0.00038043,3]
[394169742,1763343031969,-400.0,0.00038043,2]
[394169743,1763343031980,-400.0,0.00038043,3]
[394169744,1763343031989,-1600.0,0.00038044,3]
[394169745,1763343031999,-14543.1332815,0.00038048,2]
[394169746,1763343032009,-185.32004369,0.00038233,2]
[394169747,1763343032018,-253.90659608,0.00038278,2]
[394169748,1763343032027,-219.7,0.0003833,10]
[394169749,1763343032036,-183.09,0.0003833,10]
[394169750,1763343032046,-3223.11787873,0.00038333,2]
[394169752,1763343032055,-300.0,0.00038333,2]
[394169754,1763343032064,-815.69613259,0.00038333,2]
[394169756,1763343032073,-346.05051319,0.00038333,2]
[394169760,1763343032083,-260.08800594,0.00038333,2]
[394169763,1763343032091,-470.07355662,0.00038333,2]
[394169766,1763343032100,-4599.206046,0.00038333,2]
[394169767,1763343032109,-749.999999,0.00038333,14]
[394169768,1763343032118,-282.13669824,0.00038333,2]
[394169769,1763343032130,-29.40948121,0.00038333,2]
[394169770,1763343032139,-1330.37615485,0.00038333,20]
[394169771,1763343032148,-500.0,0.00038339,15]
[394169772,1763343032157,-500.0,0.00038339,15]
[394169773,1763343032167,-500.0,0.00038339,7]
[394169774,1763343032176,-500.0,0.00038339,7]
[394169775,1763343032185,-290.90074796,0.00038339,15]
[394169776,1763343032197,-500.0,0.00038339,7]